[Event "Asian Amateur-ch Open 2022"]
[Site "Muscat"]
[Date "2022.10.02"]
[Round "5.3"]
[White "Zahmati, Sobhan"]
[Black "Dadabaev, Zhanybek"]
[Result "1-0"]
[ECO "D02"]
[WhiteElo "1926"]
[BlackElo "1902"]
[Annotator "TA"]
[PlyCount "39"]
[EventDate "2022.09.29"]
[EventType "swiss"]
[SourceTitle "playchess.com"]
[Source "ChessBase"]
[SourceQuality "1"]
[TimeControl "5400+30"]

{[%evp 9,39,-18,0,0,0,-9,-9,-34,-13,-16,98,37,101,108,138,117,337,354,359,350,368,373,474,472,481,461,478,490,487,487,483,482]} 1. d4 {[%emt 0:00:05]} d5 {[%emt 0:00:14]} 2. Nf3 {[%emt 0:00:09]} e6 {[%emt 0:00:18]} 3. g3 {[%emt 0:00:57]} c5 {[%emt 0:01:21]} 4. dxc5 {[%emt 0:00:45]} Bxc5 {[%emt 0:00:29]} 5. Bg2 {[%emt 0:00:19]} Nf6 {[%emt 0:01:08]} 6. c4 {[%emt 0:02:41] D02: 1 d4 d5 2 Nf3 sidelines, including 2...Nf6 3 g3 and 2...Nf6 3 Bf4.} d4 {[%emt 0:02:30]} 7. Nbd2 {[%emt 0:04:58]} Nc6 {[%emt 0:02:40] [#]} 8. Nb3 $146 {[%emt 0:02:27] The position is equal.} ({Predecessor:} 8. O-O a5 9. Nb3 Ba7 10. e3 dxe3 11. Qxd8+ Kxd8 12. Bxe3 Bxe3 13. fxe3 Ke7 14. Nc5 {½-½ (36) Kuzmicz,K (2461)-Tomczak,J (2628) Katowice 2019}) 8... Bb4+ {[%emt 0:00:57]} 9. Bd2 {[%emt 0:00:17]} Be7 {[%emt 0:01:07] [#]} (9... Bxd2+ $11 10. Nfxd2 e5) 10. Bf4 {[%emt 0:03:58]} (10. Nfxd4 $1 $16 Bd7 11. Bc3) 10... Bb4+ {[%emt 0:09:23]} (10... Nh5 $1 $14) 11. Kf1 $16 {[%emt 0:02:25]} O-O {[%emt 0:10:05]} 12. Nfxd4 {[%emt 0:03:07]} ({But not} 12. Nbxd4 Nxd4 13. Qxd4 (13. Nxd4 Qe7 $14) 13... Qa5 $16) 12... Qb6 {[%emt 0:08:29]} (12... Bd7 $16) 13. Nxc6 $18 {[%emt 0:11:17]} bxc6 {[%emt 0:00:01]} 14. c5 {[%emt 0:00:22]} Qb5 {[%emt 0:05:33]} 15. a3 {[%emt 0:04:19]} Ba5 {[%emt 0:12:31]} 16. Nxa5 {[%emt 0:16:13] White is clearly winning.} Qxa5 {[%emt 0:00:10]} 17. Bxc6 {[%emt 0:01:34] This bishop pair is nice.} Ba6 {[%emt 0:00:08]} 18. b4 {[%emt 0:00:26]} Qd8 {[%emt 0:01:04]} 19. Qxd8 {[%emt 0:04:18]} Raxd8 {[%emt 0:00:09]} 20. Bd6 {[%emt 0:00:10] White took control after the opening.  Weighted Error Value: White=0.06 (flawless) /Black=0.57} 1-0

[Event "Asian Amateur-ch Open 2022"]
[Site "Muscat"]
[Date "2022.10.02"]
[Round "5.4"]
[White "Thapa, Krishna"]
[Black "Maasarani, Mahmoud"]
[Result "1-0"]
[ECO "D78"]
[WhiteElo "1928"]
[BlackElo "1991"]
[Annotator "TA"]
[PlyCount "89"]
[EventDate "2022.09.29"]
[EventType "swiss"]
[SourceTitle "playchess.com"]
[Source "ChessBase"]
[SourceQuality "1"]
[TimeControl "5400+30"]

{[%evp 15,89,18,48,42,43,4,54,51,31,29,27,25,19,25,81,79,102,88,87,91,85,89,114,114,126,140,152,165,177,169,173,166,175,165,168,118,124,119,159,124,177,179,197,194,293,278,391,400,560,527,702,686,1283,749,902,881,1354,1337,1325,1204,1624,710,710,657,643,558,520,501,1942,1741,1676,1577,29989,29989,29990,5002]} 1. d4 {[%emt 0:00:04]} d5 {[%emt 0:00:55]} 2. c4 {[%emt 0:00:32]} c6 {[%emt 0:00:04]} 3. Nf3 {[%emt 0:00:32]} Nf6 {[%emt 0:00:17]} 4. g3 {[%emt 0:00:07]} g6 {[%emt 0:00:19]} 5. Bg2 {[%emt 0:00:09]} Bg7 {[%emt 0:00:15]} 6. Nc3 {[%emt 0:00:18]} O-O {[%emt 0:00:20]} 7. O-O {[%emt 0:00:43]} Re8 {[%emt 0:04:17]} 8. Ne5 {[%emt 0:04:07]} e6 {[%emt 0:04:11]} 9. Bg5 {[%emt 0:03:01] D78: Fianchetto Grünfeld: 6 0-0 c6.} h6 {[%emt 0:01:14] [#]} 10. Bf4 $146 {[%emt 0:02:14]} ({Predecessor:} 10. Be3 Nbd7 11. Qc1 Nxe5 12. dxe5 Ng4 13. Rd1 Nxe3 14. Qxe3 Qc7 15. Rac1 Qxe5 16. Qxe5 Bxe5 {0-1 (37) Koch,M (1774)-Hater,N (1908) Nordrheinwestfalen 2014}) 10... Qe7 {[%emt 0:05:37]} ({Black should play} 10... Nfd7 $11) 11. Qd2 $14 {[%emt 0:04:14] White is slightly better.} Kh7 {[%emt 0:00:34]} 12. e4 {[%emt 0:05:20]} Nxe4 $1 {[%emt 0:06:03]} 13. Nxe4 {[%emt 0:00:49]} dxe4 {[%emt 0:00:01]} 14. Bxe4 {[%emt 0:00:28]} Nd7 {[%emt 0:00:49]} (14... c5 $11) 15. Rad1 $16 {[%emt 0:03:32] White is much more active.} f5 {[%emt 0:04:50]} 16. Bg2 {[%emt 0:14:02]} g5 {[%emt 0:00:11]} 17. Nxd7 {[%emt 0:00:16]} Bxd7 {[%emt 0:05:13]} 18. Be5 {[%emt 0:03:19]} Rad8 {[%emt 0:13:30]} 19. Qa5 $36 {[%emt 0:04:36][%mdl 2048] Keeping Black busy.} a6 {[%emt 0:01:03]} 20. Bc7 {[%emt 0:02:31]} Rc8 {[%emt 0:00:17]} 21. Qb6 {[%emt 0:01:26]} e5 {[%emt 0:09:07]} 22. dxe5 {[%emt 0:04:09] Bd6 is the strong threat.} ({Worse is} 22. Qxb7 Be6 23. d5 Rxc7 $11) 22... Be6 {[%emt 0:00:55]} 23. Bd6 {[%emt 0:00:26]} Qf7 {[%emt 0:00:01]} 24. b3 {[%emt 0:00:30]} f4 {[%emt 0:01:06]} 25. f3 {[%emt 0:11:06]} ({Better is} 25. Be4+ $18 Kh8 26. Rfe1) 25... h5 {[%emt 0:01:46]} 26. Qd4 {[%emt 0:03:19]} Rh8 {[%emt 0:00:58]} 27. Rfe1 {[%emt 0:05:24]} fxg3 {[%emt 0:02:17]} (27... Rhg8 $16 28. gxf4 Qxf4 29. Qxf4 gxf4) 28. hxg3 $18 {[%emt 0:01:45]} Kg8 {[%emt 0:00:33]} 29. Qe3 {[%emt 0:05:54]} Qg6 {[%emt 0:05:26]} (29... Bh6 $142 30. Bb4 Rh7) 30. Be7 {[%emt 0:00:59]} g4 {[%emt 0:08:10]} (30... Bh6 {is a better defense.} 31. Bf1 Re8) 31. f4 {[%emt 0:01:15]} Qe8 {[%emt 0:01:26]} 32. Bh4 {[%emt 0:02:17]} Bf8 {[%emt 0:00:20]} 33. Be4 {[%emt 0:02:17] [#] And now f5 would win.} Bb4 {[%emt 0:01:57]} 34. Rf1 {[%emt 0:02:15]} Qf8 {[%emt 0:00:26]} 35. Kg2 {[%emt 0:00:10]} Bf5 {[%emt 0:01:13]} 36. Qd3 {[%emt 0:00:47]} Bxe4+ {[%emt 0:01:55]} 37. Qxe4 {[%emt 0:00:02]} Rh7 {[%emt 0:02:12]} 38. Bf6 {[%emt 0:02:34]} (38. f5 $142 Bc3 39. f6 Bxe5 40. Qxe5) 38... Qf7 {[%emt 0:00:53]} 39. Rd3 {[%emt 0:02:53]} Re8 {[%emt 0:00:27]} 40. Bh4 {[%emt 0:01:40]} Qe6 {[%emt 0:03:00]} 41. Rfd1 {[%emt 0:00:32] [#] Threatens to win with Rd8.} Be7 {[%emt 0:02:32] Inhibits Rd8.} (41... Rf7 $142 42. Rd8 Ref8 43. Rxf8+ (43. Bf6 $2 Rxf6 44. a4 Bc5 $19) 43... Rxf8) 42. f5 {[%emt 0:02:06]} Qh6 {[%emt 0:01:01]} 43. f6 {[%emt 0:01:00]} Bc5 {[%emt 0:03:21]} 44. e6 {[%emt 0:01:01]} Rf8 {[%emt 0:02:43]} 45. f7+ {[%emt 0:00:43] Weighted Error Value: White=0.19 (very precise) /Black=0.43} (45. Rd8 $142 a5 46. Qf5 Rc7 47. e7 Kf7 48. Rxf8+ Qxf8 49. Qh7+ Ke6 50. Re1+ Be3 51. Rxe3+ Kd6 52. exf8=B+ Re7 53. Qxe7#) 1-0

[Event "Asian Amateur-ch Open 2022"]
[Site "Muscat"]
[Date "2022.10.02"]
[Round "5.5"]
[White "Sharma Pankaj"]
[Black "Madhusoodanan, K.R."]
[Result "1/2-1/2"]
[ECO "A55"]
[WhiteElo "1764"]
[BlackElo "1663"]
[Annotator "NA RC COMBH"]
[PlyCount "133"]
[EventDate "2022.09.29"]
[EventType "swiss"]
[SourceTitle "playchess.com"]
[Source "ChessBase"]
[SourceQuality "1"]
[TimeControl "5400+30"]

1. Nf3 {[%emt 0:00:03]} Nf6 {[%emt 0:02:55]} 2. d4 {[%emt 0:00:08]} d6 {[%emt 0:00:28]} 3. c4 {[%emt 0:00:08]} Nbd7 {[%emt 0:00:35]} 4. Nc3 {[%emt 0:03:13]} e5 {[%emt 0:00:02]} 5. e4 {[%emt 0:02:31]} Be7 {[%emt 0:02:12]} 6. Be2 {[%emt 0:03:23]} c6 {[%emt 0:01:25]} 7. O-O {[%emt 0:00:28]} O-O {[%emt 0:01:00]} 8. h3 {[%emt 0:01:16]} Qc7 {[%emt 0:05:13]} 9. Be3 {[%emt 0:00:36]} Re8 {[%emt 0:04:58]} 10. Qc2 {[%emt 0:00:41]} Nf8 {[%emt 0:00:29]} 11. a3 {[%emt 0:03:09]} Ng6 {[%emt 0:01:16]} 12. Rfe1 {[%emt 0:02:52]} Rf8 {[%emt 0:08:35]} 13. b4 {[%emt 0:01:51]} Ne8 {[%emt 0:12:12]} 14. dxe5 {[%emt 0:13:43]} dxe5 {[%emt 0:00:31]} 15. c5 {[%emt 0:01:23]} h6 {[%emt 0:05:12]} 16. Nd2 {[%emt 0:09:13]} Nf4 {[%emt 0:02:08]} 17. Bf1 {[%emt 0:02:07]} g5 {[%emt 0:02:47]} 18. Nc4 {[%emt 0:01:38]} Be6 {[%emt 0:01:44]} 19. Kh2 {[%emt 0:02:39]} Rd8 {[%emt 0:00:50]} 20. Rad1 {[%emt 0:04:01]} Ng7 {[%emt 0:01:07]} 21. Nd6 {[%emt 0:01:55]} Bxd6 {[%emt 0:08:18]} 22. cxd6 {[%emt 0:00:16]} Qb8 {[%emt 0:01:17]} 23. g3 {[%emt 0:00:57]} Ng6 {[%emt 0:00:44]} 24. Qa4 {[%emt 0:04:57]} b6 {[%emt 0:01:48]} 25. b5 {[%emt 0:03:02]} c5 {[%emt 0:00:50]} 26. Nd5 {[%emt 0:07:30]} Bxd5 {[%emt 0:03:41]} 27. Rxd5 {[%emt 0:00:19]} Rxd6 {[%emt 0:02:44]} 28. Rxd6 {[%emt 0:00:44]} Qxd6 {[%emt 0:00:02]} 29. Qxa7 {[%emt 0:00:49]} Ne6 {[%emt 0:00:40]} 30. Kg2 {[%emt 0:07:10]} Nd4 {[%emt 0:00:32]} 31. Bxd4 {[%emt 0:01:09]} exd4 {[%emt 0:00:25]} 32. a4 {[%emt 0:09:58]} d3 {[%emt 0:03:44]} 33. Bxd3 {[%emt 0:05:01]} Qxd3 {[%emt 0:00:21]} 34. Qxb6 {[%emt 0:00:02]} Ra8 {[%emt 0:03:08]} 35. Re3 {[%emt 0:00:42]} Qd2 {[%emt 0:00:45]} 36. Qxc5 {[%emt 0:02:10]} Rxa4 {[%emt 0:00:41]} 37. e5 {[%emt 0:01:11]} Qd4 {[%emt 0:00:49]} 38. Qxd4 {[%emt 0:02:55]} Rxd4 {[%emt 0:00:06]} 39. e6 {[%emt 0:00:21]} fxe6 {[%emt 0:00:12]} 40. Rxe6 {[%emt 0:00:01]} Kf7 {[%emt 0:00:02]} 41. Rc6 {[%emt 0:00:12]} Rb4 {[%emt 0:02:12]} 42. b6 {[%emt 0:00:03]} h5 {[%emt 0:00:17]} 43. Rc7+ {[%emt 0:00:32]} Kf6 {[%emt 0:00:08]} 44. Rc6+ {[%emt 0:01:48]} Kf5 {[%emt 0:00:15]} 45. b7 {[%emt 0:00:28]} Ne5 {[%emt 0:02:12]} 46. Rc7 {[%emt 0:00:22]} g4 {[%emt 0:00:12]} 47. Rh7 {[%emt 0:01:12]} Kg6 {[%emt 0:00:58]} 48. Re7 {[%emt 0:00:14]} Nf3 {[%emt 0:01:05]} 49. hxg4 {[%emt 0:00:04]} hxg4 {[%emt 0:01:12]} 50. Re4 {[%emt 0:00:12]} Rxb7 {[%emt 0:02:36]} 51. Rxg4+ {[%emt 0:00:07]} Kh5 {[%emt 0:00:03]} 52. Rg8 {[%emt 0:00:35]} Ng5 {[%emt 0:05:26]} 53. Rh8+ {[%emt 0:00:39]} Kg6 {[%emt 0:00:45]} 54. Rg8+ {[%emt 0:00:02]} Kh5 {[%emt 0:01:42]} 55. Rh8+ {[%emt 0:00:05]} Kg6 {[%emt 0:03:37]} 56. Ra8 {[%emt 0:00:06]} Rb2 {[%emt 0:00:21]} 57. Ra6+ {[%emt 0:00:37]} Kh5 {[%emt 0:00:49]} 58. Ra5 {[%emt 0:00:14]} Kg6 {[%emt 0:00:17]} 59. Re5 {[%emt 0:02:15]} Kf6 {[%emt 0:00:14]} 60. Re8 {[%emt 0:00:23]} Kf7 {[%emt 0:00:56]} 61. Re3 {[%emt 0:00:56]} Kg6 {[%emt 0:00:22]} 62. g4 {[%emt 0:00:48]} Nf7 {[%emt 0:01:20]} 63. Kg3 {[%emt 0:00:31]} Rb1 {[%emt 0:02:21]} 64. Re6+ {[%emt 0:01:23]} Kg7 {[%emt 0:00:03]} 65. f3 {[%emt 0:00:44]} Rb3 {[%emt 0:00:24]} 66. Kf4 {[%emt 0:01:37]} Rxf3+ {[%emt 0:01:28]} 67. Kxf3 {[%emt 0:00:07]} 1/2-1/2

[Event "Asian Amateur-ch Open 2022"]
[Site "Muscat"]
[Date "2022.10.02"]
[Round "5.6"]
[White "Muhammed, Zahid"]
[Black "Mohammed Tareq Abbood Al-Latoo"]
[Result "0-1"]
[ECO "B13"]
[WhiteElo "1677"]
[BlackElo "1957"]
[Annotator "TA"]
[PlyCount "78"]
[EventDate "2022.09.29"]
[EventType "swiss"]
[SourceTitle "playchess.com"]
[Source "ChessBase"]
[SourceQuality "1"]
[TimeControl "5400+30"]

{[%evp 16,78,39,26,70,68,67,69,73,56,54,10,14,0,0,-68,0,-34,0,-43,-45,-66,-70,-75,-60,-79,-75,-75,-56,-83,-56,-128,-67,-102,-111,-140,-132,-167,-170,-189,-191,-200,-173,-187,0,-178,-85,-823,-821,-1677,-965,-2639,-2518,-29983,-29984,-29984,-6008,-5102,-1016,-976,-976,-976,-976,-2442,-2007]} 1. e4 {[%emt 0:01:26]} c6 {[%emt 0:00:17]} 2. d4 {[%emt 0:00:22]} d5 {[%emt 0:00:30]} 3. exd5 {[%emt 0:00:23]} cxd5 {[%emt 0:02:08]} 4. Bd3 {[%emt 0:00:16]} Nc6 {[%emt 0:00:18]} 5. Nf3 {[%emt 0:00:15]} Nf6 {[%emt 0:01:51]} 6. O-O {[%emt 0:00:16]} g6 {[%emt 0:01:08]} 7. c3 {[%emt 0:00:18]} Bg7 {[%emt 0:00:07]} 8. Re1 {[%emt 0:00:59] 8.Bf4 is the modern continuation.} O-O {[%emt 0:00:53]} 9. Nbd2 {[%emt 0:00:45]} Bf5 {[%emt 0:02:05] B13: Caro-Kann: Exchange Variation and Panov-Botvinnik Attack.} 10. Bxf5 {[%emt 0:06:24]} gxf5 {[%emt 0:00:16]} 11. Ne5 {[%emt 0:01:15] [#]} Kh8 $146 {[%emt 0:03:00] White is slightly better.} ({Predecessor:} 11... e6 12. Ndf3 Ne7 13. Bg5 Ne4 14. Bxe7 Qxe7 15. Nd3 Kh8 16. Nfe5 Bxe5 17. dxe5 Rg8 {0-1 (34) Kovacevic,V (2499)-Zelcic,R (2591) Stari Mikanovci 2008}) 12. Qe2 {[%emt 0:02:22]} (12. Nb3 {is more complex.} e6 13. Bf4 Ne4 14. Nxc6 bxc6 15. Qh5) 12... e6 {[%emt 0:00:29]} 13. f3 {[%emt 0:01:35]} Nxe5 {[%emt 0:03:18]} 14. Qxe5 {[%emt 0:04:24]} Rg8 {[%emt 0:10:31]} 15. Qe2 {[%emt 0:01:15]} (15. Nb3 $11) 15... Nh5 {[%emt 0:06:07]} (15... Bf8 $1 $15) 16. Nf1 {[%emt 0:00:22]} f4 {[%emt 0:00:42]} 17. Bd2 {[%emt 0:09:03]} Bf6 {[%emt 0:03:19]} 18. Qd1 {[%emt 0:06:03]} Rg6 {[%emt 0:08:02][%cal Oe6e5] aiming for ...e5!} 19. Re2 {[%emt 0:00:58] Inhibits e5.} Qf8 {[%emt 0:06:28]} 20. Qc2 {[%emt 0:03:56]} Qg7 {[%emt 0:01:52]} 21. Rd1 {[%emt 0:01:09]} Rc8 {[%emt 0:02:32]} 22. Bc1 {[%emt 0:03:50]} Rg8 {[%emt 0:03:29]} 23. a4 {[%emt 0:02:13] [#]} (23. b3 $15) 23... b6 {[%emt 0:01:17]} (23... Be7 $1 $17) 24. Rdd2 {[%emt 0:01:02]} Qh6 {[%emt 0:01:14]} 25. Qd1 {[%emt 0:01:41]} Ng7 {[%emt 0:00:41][%cal Bh5g7,Bg7f5,Bf5h4][%mdl 32] Black is more active.} 26. Rc2 {[%emt 0:00:38]} Nf5 {[%emt 0:02:24]} 27. Qd2 {[%emt 0:05:58]} Bg5 {[%emt 0:06:22]} 28. Qd3 {[%emt 0:01:19]} Nh4 {[%emt 0:05:38]} 29. Kh1 {[%emt 0:01:40]} Nf5 {[%emt 0:02:21] Threatens to win with ...Ng3+.} 30. Kg1 {[%emt 0:00:20]} Qh5 {[%emt 0:00:01]} (30... Be7 $19 {Strongly threatening ...Bd6.} 31. b4 Bd6) 31. g4 $2 {[%emt 0:19:17][%mdl 8192] White does not recover from this.} (31. b3 $17) 31... fxg3 $19 {[%emt 0:02:22]} 32. hxg3 {[%emt 0:01:15]} Bxc1 {[%emt 0:01:13]} 33. Rxc1 {[%emt 0:05:26]} Nxg3 {[%emt 0:02:56] ( -> ...Ne4+)} 34. Nxg3 {[%emt 0:19:05]} Rxg3+ {[%emt 0:21:39]} 35. Kf2 {[%emt 0:00:00]} Rg2+ {[%emt 0:00:00]} (35... Qh4 $142 36. Ke1 Rxf3+ 37. Kd1 Rxd3+ 38. Kc2 Qf4 39. Rce1 Rdg3 40. Kb1 Qf5+ 41. Ka2 Qd3 42. Rh2 Rg1 43. Ree2 {[#]} Ra1+ $3 {[%mdl 512]} 44. Kb3 Rg3 45. Rxh7+ Kxh7 46. Rh2+ Kg7 47. Rh7+ Kxh7 48. a5 Rxa5 49. Kb4 Qc4#) 36. Ke1 {[%emt 0:00:00] Black is clearly winning.} Rg1+ {[%emt 0:00:00]} (36... Rxe2+ $142 37. Qxe2 Rg1+ 38. Kf2 Rxc1) 37. Kd2 {[%emt 0:00:00]} Qh6+ {[%emt 0:00:00]} 38. Qe3 {[%emt 0:00:00]} Qxe3+ {[%emt 0:00:00]} 39. Rxe3 {[%emt 0:00:00]} R8g2+ {[%emt 0:02:30] Weighted Error Value: White=1.07/Black=0.60} 0-1

[Event "Asian Amateur-ch Open 2022"]
[Site "Muscat"]
[Date "2022.10.02"]
[Round "5.7"]
[White "Muhammad Shahzeb"]
[Black "Al Amari, Mohammed"]
[Result "1-0"]
[ECO "C45"]
[WhiteElo "1992"]
[BlackElo "1646"]
[Annotator "TA"]
[PlyCount "95"]
[EventDate "2022.09.29"]
[EventType "swiss"]
[SourceTitle "playchess.com"]
[Source "ChessBase"]
[SourceQuality "1"]
[TimeControl "5400+30"]

{[%evp 12,95,77,75,455,208,407,387,375,312,423,401,570,570,1145,1101,1054,739,792,604,1494,1475,1311,880,813,458,475,415,419,424,403,354,354,316,316,316,316,316,315,315,314,311,311,307,344,338,386,348,387,386,456,398,509,504,537,522,550,552,602,595,712,706,701,797,820,805,809,797,769,758,983,975,961,945,935,878,860,849,825,735,732,718,689,677,1037,1028]} 1. e4 {[%emt 0:00:13]} e5 {[%emt 0:04:41]} 2. Nf3 {[%emt 0:00:05][%cal Bg1f3,Bf3d4,Bd4b5][%mdl 32]} Nc6 {[%emt 0:00:30]} 3. d4 {[%emt 0:00:03]} exd4 {[%emt 0:03:28]} 4. Nxd4 {[%emt 0:00:02]} Qh4 {[%emt 0:01:43]} 5. Nc3 {[%emt 0:00:02]} Bb4 {[%emt 0:00:52]} 6. Be2 {[%emt 0:00:05]} Qxe4 {[%emt 0:03:48] [#]} 7. Ndb5 $1 {[%emt 0:00:01]} Ba5 {[%emt 0:14:22][%mdl 8192] [#] A mistake that costs the game. C45: Scotch Game.} (7... Qxg2 $2 8. Bf3 Qh3 9. Nxc7+ Kd8 10. Nxa8 $18) (7... Kd8 $16) 8. O-O {[%emt 0:00:32]} (8. Nxc7+ $142 $1 {[%mdl 512]} Kd8 9. Nxa8) 8... Qh4 $2 {[%emt 0:00:34]} (8... Bxc3 9. Nxc7+ (9. Nxc3 Qd4 $16) (9. bxc3 Kd8 $14) 9... Kd8) 9. Nd5 $18 {[%emt 0:00:13]} Qd8 {[%emt 0:00:29] White is winning.} 10. b4 {[%emt 0:05:22][%cal Bb2b4,Bb4b5][%mdl 32] [#]} Bb6 $146 {[%emt 0:06:18]} ({Predecessor:} 10... Nxb4 11. Nxb4 Bxb4 12. Qd4 Be7 13. Qxg7 Bf6 14. Qg3 d6 15. Rb1 Ne7 16. Bh5 a6 {0-1 (36) Muslic,E-Svagusa,B Sv Filip i Jakov 2001}) 11. c4 {[%emt 0:01:08] And now c5 would win.} a6 {[%emt 0:05:00]} (11... Nxb4 {keeps fighting.} 12. Nxb4 Ne7) 12. Nxb6 {[%emt 0:00:10][%mdl 64] Deflection} cxb6 {[%emt 0:02:41]} 13. Nd6+ {[%emt 0:00:02]} Kf8 {[%emt 0:00:20]} 14. b5 {[%emt 0:00:02]} Nce7 {[%emt 0:01:44]} 15. Bh5 {[%emt 0:00:18]} Ng6 {[%emt 0:00:56]} 16. Ba3 {[%emt 0:00:36][%cal Bc1a3,Ba3e7,Be7d6,Bd6f4][%mdl 32]} N8e7 {[%emt 0:00:15]} 17. Bxg6 {[%emt 0:00:04]} hxg6 {[%emt 0:00:29]} 18. Nxc8 {[%emt 0:00:10]} Rxc8 {[%emt 0:03:59]} 19. Re1 {[%emt 0:00:07]} Qc7 {[%emt 0:00:41]} 20. Bxe7+ {[%emt 0:00:08]} ({Resist} 20. Bd6 Qxc4 21. Bxe7+ Kg8 22. Qxd7 axb5 23. Qxb7 Qc7 24. Qxc7 Rxc7 $18) 20... Kg8 {[%emt 0:00:05]} 21. Bd6 {[%emt 0:00:17]} Qxc4 {[%emt 0:01:10]} 22. Rc1 {[%emt 0:01:01]} Qxc1 {[%emt 0:00:21]} 23. Qxc1 {[%emt 0:00:01]} Rxc1 {[%emt 0:00:08]} 24. Rxc1 {[%emt 0:00:01][%mdl 4096] Endgame KRB-KR} Rh5 {[%emt 0:00:13]} 25. Rb1 {[%emt 0:00:35]} Rd5 {[%emt 0:04:05]} 26. Bf4 {[%emt 0:00:44]} axb5 {[%emt 0:01:31]} 27. Kf1 {[%emt 0:00:08]} Rd4 {[%emt 0:00:14]} 28. Be3 {[%emt 0:00:03]} Ra4 {[%emt 0:00:05]} 29. Rb2 {[%emt 0:00:02]} Ra6 {[%emt 0:00:41]} 30. Bd2 {[%emt 0:00:07]} f5 {[%emt 0:00:45]} 31. Bb4 {[%emt 0:00:11]} Kf7 {[%emt 0:00:07]} 32. Rd2 {[%emt 0:00:11] White is clearly winning.} Ke6 {[%emt 0:00:16]} 33. Rd6+ {[%emt 0:00:08]} Ke5 {[%emt 0:00:40]} 34. a3 {[%emt 0:00:02]} Ra8 {[%emt 0:01:08]} 35. Rxd7 {[%emt 0:00:05]} Rc8 {[%emt 0:00:48]} 36. Rxg7 {[%emt 0:00:06]} Rc1+ {[%emt 0:00:03]} 37. Ke2 {[%emt 0:00:08]} Rc2+ {[%emt 0:00:04]} 38. Kf3 {[%emt 0:00:11]} Rc6 {[%emt 0:00:19]} 39. Re7+ {[%emt 0:00:26]} Kf6 {[%emt 0:00:21]} 40. Rxb7 {[%emt 0:00:03]} g5 {[%emt 0:00:11]} 41. h3 {[%emt 0:00:01]} Ke5 {[%emt 0:00:40]} 42. Rd7 {[%emt 0:00:23]} Rc2 {[%emt 0:00:19]} 43. Rd3 {[%emt 0:00:21]} Rc4 {[%emt 0:00:26]} 44. Re3+ {[%emt 0:00:25]} Kd5 {[%emt 0:00:11]} 45. Rc3 {[%emt 0:00:32] Black must now prevent Rxc4.} Rf4+ {[%emt 0:00:13]} 46. Ke2 {[%emt 0:00:08]} Re4+ {[%emt 0:00:09]} 47. Kd2 {[%emt 0:00:22]} Rf4 {[%emt 0:01:31]} 48. Rf3 {[%emt 0:00:05] Weighted Error Value: White=0.46/Black=0.78} 1-0